bitfinex/quotes_BTCUSD_20241229
["timestamp","ask_amount","ask_price","bid_price","bid_amount"]
[1735485248223,0.23702903,94654.0,94653.0,8.54e-05]
[1735485249066,0.28782558,94659.0,94653.0,8.54e-05]
[1735485249267,0.28682558,94659.0,94653.0,8.54e-05]
[1735485249838,0.28682558,94659.0,94653.0,0.0010854]
[1735485249839,0.28482558,94659.0,94653.0,0.0010854]
[1735485250201,0.001,94654.0,94653.0,0.0010854]
[1735485250591,0.28482558,94660.0,94653.0,0.0010854]
[1735485251036,0.002,94659.0,94653.0,8.54e-05]
[1735485251239,0.003,94659.0,94653.0,8.54e-05]
[1735485251438,0.001,94659.0,94653.0,8.54e-05]
[1735485251658,0.28482558,94660.0,94653.0,8.54e-05]
[1735485251857,0.28482558,94659.0,94653.0,8.54e-05]
[1735485253095,0.28582558,94659.0,94653.0,8.54e-05]
[1735485253857,0.28482558,94658.0,94653.0,8.54e-05]
[1735485254335,0.003,94659.0,94653.0,8.54e-05]
[1735485254542,0.001,94659.0,94653.0,8.54e-05]
[1735485254845,0.003,94659.0,94653.0,8.54e-05]
[1735485255038,0.002,94659.0,94653.0,8.54e-05]
[1735485255482,0.003,94659.0,94653.0,8.54e-05]
[1735485255697,0.28682558,94659.0,94653.0,8.54e-05]
[1735485256102,0.28782558,94659.0,94653.0,8.54e-05]
[1735485256764,0.28482558,94658.0,94653.0,8.54e-05]
[1735485257941,0.28682558,94658.0,94653.0,8.54e-05]
[1735485258627,0.28782558,94658.0,94653.0,8.54e-05]
[1735485260325,0.003,94658.0,94653.0,8.54e-05]
[1735485262325,0.01845835,94656.0,94653.0,8.54e-05]
[1735485263705,0.02045835,94656.0,94653.0,8.54e-05]
[1735485269383,0.32019878,94654.0,94653.0,8.54e-05]
[1735485270357,0.01845835,94656.0,94653.0,8.54e-05]
[1735485270581,0.01845835,94656.0,94653.0,0.0010854]
[1735485270782,0.001,94654.0,94653.0,0.0010854]
[1735485271301,0.01845835,94656.0,94653.0,0.0010854]
[1735485271619,0.01945835,94656.0,94653.0,0.0010854]
[1735485272018,0.01845835,94656.0,94653.0,8.54e-05]
[1735485273513,0.001,94654.0,94653.0,8.54e-05]
[1735485274044,0.01845835,94656.0,94653.0,8.54e-05]
[1735485274446,0.02045835,94656.0,94653.0,8.54e-05]
[1735485275718,0.01845835,94656.0,94653.0,8.54e-05]
[1735485275920,0.01845835,94656.0,94653.0,0.0010854]
[1735485276267,0.01845835,94656.0,94653.0,8.54e-05]
[1735485276671,0.02445835,94656.0,94653.0,0.0010854]
[1735485277080,0.02845835,94656.0,94653.0,0.0010854]
[1735485277527,0.02445835,94656.0,94653.0,0.0010854]
[1735485278032,0.02845835,94656.0,94653.0,0.0010854]
[1735485283162,0.01,94656.0,94653.0,0.0010854]
[1735485283934,0.02845835,94656.0,94653.0,0.0010854]
[1735485284155,0.01,94656.0,94653.0,0.0010854]
[1735485286643,0.28448865,94655.0,94653.0,0.0010854]
[1735485287803,0.28448865,94656.0,94653.0,8.54e-05]
[1735485288192,0.001,94655.0,94653.0,8.54e-05]
[1735485288773,0.28448865,94656.0,94653.0,8.54e-05]
[1735485289804,0.28648865,94656.0,94653.0,8.54e-05]
[1735485290217,0.28448865,94655.0,94653.0,8.54e-05]
[1735485291499,0.28548865,94655.0,94653.0,8.54e-05]
[1735485292560,0.001,94655.0,94653.0,8.54e-05]
[1735485301570,0.32096378,94655.0,94653.0,8.54e-05]
[1735485303822,0.001,94655.0,94653.0,8.54e-05]
[1735485304606,0.01845835,94654.0,94653.0,8.54e-05]
[1735485304816,0.19992997,94654.0,94653.0,8.54e-05]
[1735485305145,0.48125273,94654.0,94653.0,4.065e-05]
[1735485305519,0.01845835,94647.0,94646.0,8.54e-05]
[1735485306784,0.01845835,94647.0,94646.0,0.00013897]
[1735485307687,0.008,94647.0,94646.0,0.00113897]
[1735485308789,0.013,94647.0,94646.0,0.00113897]
[1735485309415,0.01845835,94652.0,94646.0,0.00013897]
[1735485309558,0.01845835,94658.0,94646.0,0.00013897]
[1735485309769,0.007,94647.0,94646.0,0.00013897]
[1735485310505,0.46670079,94660.0,94646.0,0.00013897]
[1735485310506,0.46670079,94660.0,94647.0,0.081]
[1735485310694,0.005,94658.0,94647.0,0.081]
[1735485310932,0.013,94658.0,94647.0,0.081]
[1735485311338,0.2847069,94652.0,94647.0,0.081]
[1735485312383,0.2847069,94655.0,94647.0,0.081]
[1735485312731,0.2847069,94655.0,94647.0,0.0770854]
[1735485313150,0.2847069,94655.0,94647.0,0.0740854]
[1735485313375,0.2847069,94655.0,94647.0,0.0770854]
[1735485313750,0.2847069,94655.0,94647.0,0.0740854]
[1735485313978,0.2847069,94655.0,94647.0,8.54e-05]
[1735485314181,0.23728028,94648.0,94647.0,0.0010854]
[1735485315424,0.32029527,94648.0,94647.0,0.0010854]
[1735485316137,0.32029527,94648.0,94647.0,8.54e-05]
[1735485316347,0.32729527,94648.0,94647.0,8.54e-05]
[1735485316838,0.32329527,94648.0,94647.0,8.54e-05]
[1735485317040,0.32529527,94648.0,94647.0,8.54e-05]
[1735485317293,0.32829527,94648.0,94647.0,8.54e-05]
[1735485317698,0.005,94648.0,94647.0,8.54e-05]
[1735485317907,0.01845835,94650.0,94647.0,8.54e-05]
[1735485318107,0.002,94648.0,94647.0,8.54e-05]
[1735485319521,0.006,94648.0,94647.0,8.54e-05]
[1735485319662,0.002,94648.0,94647.0,8.54e-05]
[1735485319861,0.32029527,94649.0,94647.0,8.54e-05]
[1735485320090,0.003,94648.0,94647.0,8.54e-05]
[1735485320302,0.005,94648.0,94647.0,8.54e-05]
[1735485320865,0.01845835,94650.0,94647.0,8.54e-05]
[1735485321105,0.003,94649.0,94647.0,8.54e-05]
[1735485321319,0.005,94649.0,94647.0,8.54e-05]
[1735485321524,0.005,94649.0,94648.0,0.1265]
[1735485321731,0.003,94649.0,94648.0,0.1265]
[1735485322599,0.28468333,94653.0,94648.0,0.1265]
[1735485322811,0.28468333,94653.0,94648.0,0.1235]
[1735485323357,0.002,94650.0,94648.0,0.1235]
[1735485323781,0.28468333,94654.0,94649.0,0.0880475]
[1735485324753,0.01845835,94671.0,94650.0,0.0880475]
[1735485324754,0.28468333,94657.0,94650.0,0.0880475]
[1735485325147,0.01374745,94657.0,94650.0,0.0880475]
[1735485325710,0.32029527,94666.0,94650.0,0.0880475]
[1735485326356,0.32029527,94666.0,94650.0,0.0900475]
[1735485327182,0.14226502,94652.0,94650.0,0.0880475]
[1735485328704,0.14226502,94652.0,94650.0,0.0890475]
[1735485329276,0.14226502,94652.0,94650.0,0.0930475]
[1735485330745,0.14226502,94652.0,94651.0,0.18552797]
[1735485331807,0.14226502,94657.0,94651.0,0.18552797]
[1735485332074,0.14226502,94657.0,94651.0,0.18652797]
[1735485332463,0.14226502,94657.0,94651.0,0.19052797]
[1735485332698,0.14226502,94657.0,94651.0,0.10498632]
[1735485332892,0.14226502,94660.0,94651.0,0.10498632]
[1735485333064,0.14226502,94660.0,94651.0,0.10698632]
[1735485333250,0.14226502,94660.0,94651.0,0.003]
[1735485334085,0.14226502,94660.0,94655.0,0.08154165]
[1735485334283,0.14226502,94660.0,94659.0,0.16958915]
[1735485334495,0.14226502,94660.0,94659.0,0.27357547]
[1735485335641,0.14226502,94663.0,94659.0,0.27357547]
[1735485335842,0.14226502,94663.0,94660.0,0.10398632]
[1735485336202,0.14226502,94663.0,94662.0,0.0807]
[1735485336389,0.14226502,94663.0,94662.0,0.18468632]
[1735485336598,0.14226502,94664.0,94662.0,0.27357547]
[1735485336837,0.14226502,94664.0,94663.0,0.15328632]
[1735485337050,0.14226502,94664.0,94663.0,0.25373187]
[1735485337190,0.14226502,94664.0,94663.0,0.33527352]
[1735485338199,0.0001708,94665.0,94664.0,0.16958915]
[1735485338426,0.0001708,94665.0,94664.0,0.27357547]
[1735485339021,0.0001708,94665.0,94664.0,0.32157547]
[1735485339228,0.0001708,94665.0,94664.0,0.43167282]
[1735485339429,0.0001708,94665.0,94664.0,0.39767547]
[1735485339633,0.0001708,94665.0,94664.0,0.40267547]
[1735485340038,0.0001708,94665.0,94664.0,0.39767547]
[1735485340504,0.0001708,94665.0,94664.0,0.40667547]
[1735485340903,0.0001708,94665.0,94664.0,0.40767547]
[1735485341259,0.0001708,94665.0,94664.0,0.40667547]
[1735485341456,0.0001708,94665.0,94664.0,0.44868282]
[1735485341849,0.0001708,94665.0,94664.0,0.45268282]
[1735485343113,0.0001708,94665.0,94664.0,0.44368282]
[1735485343266,0.0001708,94665.0,94664.0,0.45268282]
[1735485343497,0.0001708,94665.0,94664.0,0.44868282]
[1735485343873,0.0011708,94665.0,94664.0,0.45568282]
[1735485346876,0.0001708,94668.0,94667.0,0.26958915]
[1735485347084,0.0001708,94668.0,94667.0,0.59767547]
[1735485348082,0.0001708,94687.0,94671.0,0.1880475]
[1735485348283,0.0001708,94687.0,94671.0,0.49767547]
[1735485348918,0.0001708,94687.0,94671.0,0.59767547]
[1735485349118,0.0001708,94687.0,94671.0,0.70166179]
[1735485350437,0.0001708,94687.0,94686.0,0.29368915]
[1735485350675,0.0001708,94687.0,94686.0,0.39767547]
[1735485351963,0.0001708,94687.0,94686.0,0.40367547]
[1735485352410,0.09560363,94725.0,94703.0,0.0880475]
[1735485352583,0.09560363,94725.0,94704.0,0.10398632]
[1735485352792,0.09573765,94725.0,94704.0,0.10398632]
[1735485353953,0.01845835,94717.0,94694.0,0.0880475]
[1735485354152,0.01845835,94717.0,94686.0,0.006]
[1735485354153,0.01845835,94709.0,94689.0,0.0880475]
[1735485354359,0.01523,94708.0,94689.0,0.0880475]
[1735485354566,0.01523,94708.0,94688.0,0.0880475]
[1735485354774,0.01845835,94701.0,94675.0,0.0880475]
[1735485355003,0.01845835,94701.0,94677.0,0.0880475]
[1735485355199,0.0765,94700.0,94677.0,0.0880475]
[1735485355851,0.0765,94700.0,94676.0,0.10398632]
[1735485356200,0.0774,94695.0,94668.0,0.08154165]
[1735485356436,0.0774,94695.0,94671.0,0.0880475]
[1735485356637,0.0774,94695.0,94689.0,0.002]
[1735485356842,0.06573592,94699.0,94689.0,0.002]
[1735485356843,0.01845835,94690.0,94689.0,0.002]
[1735485356968,0.01845835,94690.0,94664.0,8.54e-05]
[1735485356969,0.01845835,94684.0,94664.0,8.54e-05]
[1735485357178,0.0774,94683.0,94664.0,8.54e-05]
[1735485359456,0.0774,94683.0,94665.0,0.10398632]
[1735485360244,0.0814,94683.0,94666.0,0.08154165]
[1735485360423,0.0814,94683.0,94667.0,0.18552797]
[1735485360623,0.0814,94683.0,94665.0,0.0880475]
[1735485360942,0.21966502,94691.0,94668.0,0.18552797]
[1735485361161,0.21979897,94691.0,94668.0,0.18552797]
[1735485361465,0.003,94683.0,94668.0,0.18552797]
[1735485362281,0.0030854,94683.0,94668.0,0.18552797]
[1735485362892,0.0030854,94683.0,94669.0,0.08154165]
[1735485363119,8.54e-05,94683.0,94675.0,0.08154165]
[1735485363319,8.54e-05,94683.0,94676.0,0.10398632]
[1735485364646,8.54e-05,94683.0,94676.0,0.10498632]
[1735485365661,0.0010854,94683.0,94676.0,0.10498632]
[1735485366021,8.54e-05,94683.0,94676.0,0.10498632]
[1735485366430,0.0010854,94683.0,94676.0,0.10498632]
[1735485366870,0.0010854,94683.0,94682.0,0.08154165]
[1735485367027,0.0010854,94683.0,94682.0,0.18552797]
[1735485367883,0.0010854,94683.0,94681.0,0.0880475]
[1735485368224,0.0010854,94683.0,94682.0,0.005]
[1735485368401,8.54e-05,94683.0,94682.0,0.005]
[1735485368928,0.0010854,94683.0,94682.0,0.005]
[1735485369140,0.00886394,94683.0,94682.0,0.005]
[1735485369439,0.08556394,94683.0,94682.0,0.005]
[1735485369640,0.0777854,94683.0,94664.0,8.54e-05]
[1735485369842,0.0777854,94683.0,94682.0,0.001]
[1735485370086,0.0777854,94683.0,94682.0,0.005]
[1735485370294,0.0777854,94683.0,94682.0,0.004]
[1735485370587,0.0777854,94683.0,94664.0,8.54e-05]
[1735485371403,0.0777854,94683.0,94682.0,0.001]
[1735485371627,0.0777854,94683.0,94664.0,8.54e-05]
[1735485371857,0.14224323,94675.0,94664.0,8.54e-05]
[1735485373060,0.14224323,94675.0,94664.0,0.0010854]
[1735485373221,0.14224323,94675.0,94664.0,0.0020854]
[1735485373437,0.14224323,94672.0,94664.0,0.0010854]
[1735485373644,0.14224323,94672.0,94664.0,0.0050854]
[1735485374344,0.14224323,94671.0,94664.0,0.0050854]
[1735485374567,0.14224323,94671.0,94665.0,0.0001706]
[1735485376041,0.14224323,94670.0,94665.0,0.0001706]
[1735485376470,0.14224323,94670.0,94665.0,0.0061706]
[1735485377174,0.14224323,94666.0,94665.0,0.0061706]
[1735485377409,0.14224323,94666.0,94665.0,0.0001706]
[1735485377649,0.14224323,94666.0,94665.0,0.0061706]
[1735485378660,0.18965764,94667.0,94665.0,0.0061706]
[1735485379198,0.18965764,94667.0,94665.0,0.0001706]
[1735485379680,0.001,94666.0,94665.0,0.0101706]
[1735485379887,0.18965764,94666.0,94665.0,0.0021706]
[1735485380411,0.18965764,94666.0,94665.0,0.0101706]
[1735485380547,0.18965764,94666.0,94665.0,0.0081706]
[1735485380921,0.001,94666.0,94665.0,0.0181706]
[1735485381447,0.001,94666.0,94665.0,0.0161706]
[1735485381673,0.001,94666.0,94665.0,0.33319857]
[1735485381869,0.001,94666.0,94665.0,0.25165692]
[1735485382089,0.001,94666.0,94665.0,0.42124607]
[1735485382935,0.19075198,94666.0,94665.0,0.42424607]
[1735485383148,0.18975198,94666.0,94665.0,0.40824607]
[1735485383367,0.18975198,94666.0,94665.0,0.40524607]
[1735485383567,0.19075198,94666.0,94665.0,0.41424607]
[1735485383768,0.19075198,94666.0,94665.0,0.40824607]
[1735485384127,0.001,94666.0,94665.0,0.40824607]
[1735485384329,0.002,94666.0,94665.0,0.41724607]
[1735485385054,0.002,94666.0,94665.0,0.45897922]
[1735485388715,0.002,94666.0,94665.0,0.41724607]
[1735485389147,0.002,94666.0,94665.0,0.24765692]
[1735485389353,0.002,94666.0,94665.0,0.11615692]
[1735485389562,0.002,94666.0,94665.0,0.0121706]
[1735485389986,0.002,94666.0,94665.0,0.11615692]
[1735485392264,0.002,94666.0,94665.0,0.14474007]
[1735485393152,0.002,94666.0,94665.0,0.23278757]
[1735485393618,0.002,94666.0,94665.0,0.39592922]
[1735485394253,0.002,94666.0,94665.0,0.44292922]
[1735485400728,0.002,94666.0,94665.0,0.43992922]
[1735485401078,0.002,94666.0,94665.0,0.44592922]
[1735485401490,0.002,94666.0,94665.0,0.54592922]
[1735485401919,8.54e-05,94683.0,94682.0,0.29378915]
[1735485402125,8.54e-05,94683.0,94682.0,0.39777547]
[1735485404359,8.54e-05,94683.0,94682.0,0.40077547]
[1735485404877,8.54e-05,94683.0,94682.0,0.39777547]
[1735485405095,8.54e-05,94683.0,94682.0,0.40677547]
[1735485405304,8.54e-05,94683.0,94682.0,0.40977547]
[1735485405518,8.54e-05,94683.0,94682.0,0.44175302]
[1735485405723,8.54e-05,94683.0,94682.0,0.45075302]
[1735485406027,8.54e-05,94683.0,94682.0,0.44175302]
[1735485406546,8.54e-05,94683.0,94682.0,0.44775302]
[1735485406905,8.54e-05,94683.0,94682.0,0.45175302]
[1735485407465,8.54e-05,94683.0,94682.0,0.44775302]
[1735485407869,8.54e-05,94683.0,94682.0,0.45175302]
[1735485408987,8.54e-05,94683.0,94682.0,0.32923382]
[1735485409193,8.54e-05,94683.0,94682.0,0.41077547]
[1735485410255,8.54e-05,94683.0,94682.0,0.41094607]
[1735485413347,8.54e-05,94683.0,94682.0,0.24709857]
[1735485413553,8.54e-05,94683.0,94682.0,0.33514607]
[1735485415136,8.54e-05,94683.0,94682.0,0.37680068]
[1735485417354,8.54e-05,94683.0,94682.0,0.45820068]
[1735485417772,8.54e-05,94683.0,94682.0,0.41654607]
[1735485418397,8.54e-05,94683.0,94682.0,0.41254607]
[1735485418699,8.54e-05,94683.0,94682.0,0.41954607]
[1735485419538,8.54e-05,94683.0,94682.0,0.41054607]
[1735485420106,8.54e-05,94683.0,94682.0,0.41954607]
[1735485420314,8.54e-05,94683.0,94682.0,0.49262458]
[1735485420519,8.54e-05,94683.0,94682.0,0.48362458]
[1735485421017,8.54e-05,94683.0,94682.0,0.49262458]
[1735485421217,8.54e-05,94683.0,94682.0,0.80385758]
[1735485421413,8.54e-05,94683.0,94682.0,0.79685758]
[1735485421622,8.54e-05,94683.0,94682.0,0.89685758]
[1735485422461,8.54e-05,94683.0,94682.0,0.90185758]
[1735485423040,8.54e-05,94683.0,94682.0,0.89685758]
[1735485423390,8.54e-05,94683.0,94682.0,0.88785758]
[1735485423891,8.53e-05,94725.0,94690.0,0.70840415]
[1735485424133,8.53e-05,94725.0,94690.0,0.90435279]
[1735485425651,8.53e-05,94725.0,94690.0,0.91235279]
[1735485427346,8.53e-05,94725.0,94690.0,0.92135279]
[1735485430736,0.0796,94719.0,94690.0,0.92135279]
[1735485430943,0.0796,94719.0,94690.0,0.71013779]
[1735485431149,0.0796,94719.0,94690.0,0.33012797]
[1735485431380,0.0796,94719.0,94690.0,0.41817547]
[1735485432020,0.0796,94703.0,94690.0,0.28257547]
[1735485432232,0.0796,94703.0,94690.0,0.18552797]
[1735485432449,0.0796,94703.0,94690.0,0.28157547]
[1735485432664,0.0796,94703.0,94690.0,0.29057547]
[1735485432881,0.0796,94703.0,94690.0,0.28257547]
[1735485433302,0.0796,94703.0,94690.0,0.28357547]
[1735485434220,0.0796,94703.0,94690.0,0.27457547]
[1735485434427,0.0796,94703.0,94690.0,0.27357547]
[1735485434634,0.0796,94703.0,94690.0,0.27957547]
[1735485434880,0.0796,94703.0,94690.0,0.27457547]
[1735485435297,0.0796,94703.0,94690.0,0.28057547]
[1735485435445,0.0796,94703.0,94690.0,0.27957547]
[1735485435648,0.0796,94703.0,94690.0,0.28057547]
[1735485436369,0.0796,94703.0,94690.0,0.30863302]
[1735485436811,0.0796,94703.0,94690.0,0.28057547]
[1735485439490,0.14226413,94706.0,94690.0,0.28057547]
[1735485439690,0.14226413,94704.0,94690.0,0.36377547]
[1735485439864,0.14226413,94704.0,94690.0,0.41177547]
[1735485440675,0.14226413,94710.0,94690.0,0.40577547]
[1735485441235,0.14226413,94710.0,94690.0,0.71599047]
[1735485441489,0.14226413,94710.0,94690.0,0.92771232]
[1735485441895,0.14226413,94719.0,94690.0,0.92871232]
[1735485442332,0.14226413,94719.0,94690.0,0.91871232]
[1735485442837,0.14226413,94719.0,94690.0,0.92671232]
[1735485443049,8.53e-05,94725.0,94690.0,0.92671232]
[1735485443936,8.53e-05,94725.0,94690.0,0.93571232]
[1735485444147,8.53e-05,94725.0,94690.0,0.91871232]
[1735485444601,8.53e-05,94725.0,94690.0,0.93471232]
[1735485444834,8.53e-05,94725.0,94690.0,0.92571232]
[1735485445083,8.53e-05,94725.0,94690.0,0.91871232]
[1735485445575,8.53e-05,94725.0,94690.0,0.92671232]
[1735485445806,0.00021935,94691.0,94690.0,0.92671232]
[1735485446008,0.00021935,94691.0,94690.0,0.93571232]
[1735485446983,0.00021935,94691.0,94690.0,0.43644982]
[1735485447193,0.00021935,94691.0,94690.0,0.62177547]
[1735485461801,0.00021935,94691.0,94690.0,0.25218632]
[1735485462012,0.00021935,94691.0,94690.0,0.25052797]
[1735485462243,0.00021935,94691.0,94690.0,0.29057547]
[1735485463573,0.00021935,94691.0,94690.0,0.4688431]
[1735485466734,0.00021935,94691.0,94690.0,0.29057547]
[1735485467501,0.00021935,94691.0,94690.0,0.20903382]
[1735485467709,0.00021935,94691.0,94690.0,0.20252797]
[1735485467907,0.00021935,94691.0,94690.0,0.29057547]
[1735485468107,0.00021935,94691.0,94690.0,0.28257547]
[1735485468360,0.00021935,94691.0,94690.0,0.27357547]
[1735485468608,0.00021935,94691.0,94690.0,0.28957547]
[1735485469026,0.00021935,94691.0,94690.0,0.28057547]
[1735485469228,0.00021935,94691.0,94690.0,0.28957547]
[1735485470595,0.00021935,94691.0,94690.0,0.28257547]
[1735485470794,0.00021935,94691.0,94690.0,0.28757547]
[1735485472449,0.00021935,94691.0,94690.0,0.19952797]
[1735485473470,0.00021935,94691.0,94690.0,0.28757547]
[1735485476538,0.07661935,94691.0,94690.0,0.11798632]
[1735485477690,0.07661935,94691.0,94690.0,0.11298632]
[1735485478031,0.07661935,94691.0,94690.0,0.10398632]
[1735485478475,0.07661935,94691.0,94690.0,0.10498632]
[1735485478691,0.26730486,94691.0,94690.0,0.10398632]
[1735485479078,0.26730486,94691.0,94690.0,0.10498632]
[1735485479734,0.23710689,94695.0,94690.0,0.10498632]
[1735485479994,0.23710689,94695.0,94691.0,0.10398632]
[1735485480217,0.23710689,94695.0,94690.0,0.001]
[1735485480438,8.54e-05,94691.0,94690.0,0.001]
[1735485481681,0.0010854,94691.0,94684.0,0.08154165]
[1735485481904,0.0010854,94691.0,94685.0,0.10398632]
[1735485482670,0.0764,94690.0,94685.0,0.10398632]
[1735485483456,0.0764,94690.0,94685.0,0.10498632]
[1735485483662,8.54e-05,94691.0,94689.0,0.08154165]
[1735485483894,8.54e-05,94691.0,94690.0,0.10398632]
[1735485484511,0.0764,94690.0,94683.0,0.0001708]
[1735485484728,0.0764,94690.0,94684.0,0.18552797]
[1735485485096,0.0764,94690.0,94685.0,0.002]
[1735485485313,0.0764,94690.0,94686.0,0.10398632]
[1735485487027,0.0764,94690.0,94686.0,0.10698632]
[1735485488062,0.0764,94690.0,94686.0,0.003]
[1735485489043,0.0756,94690.0,94686.0,0.003]
[1735485489674,0.0481,94697.0,94686.0,0.003]
[1735485489675,0.01931997,94700.0,94686.0,0.003]
[1735485490079,0.01931997,94700.0,94686.0,0.0114883]
[1735485490879,0.18975394,94703.0,94686.0,0.003]
[1735485491056,0.001,94700.0,94686.0,0.003]
[1735485492294,0.001,94700.0,94683.0,0.0001708]
[1735485492499,0.001,94700.0,94686.0,0.0001708]
[1735485492712,8.54e-05,94691.0,94686.0,0.0001708]
[1735485495261,8.54e-05,94691.0,94686.0,0.0021708]
[1735485497737,0.0365,94690.0,94686.0,0.0021708]
[1735485498628,0.0365,94690.0,94686.0,0.0001708]
[1735485498842,0.0365,94690.0,94686.0,0.0031708]
[1735485501836,8.54e-05,94691.0,94686.0,0.0031708]
[1735485502716,8.54e-05,94691.0,94686.0,0.0001708]
[1735485503136,8.54e-05,94691.0,94686.0,0.0021708]
[1735485508599,0.18975394,94690.0,94686.0,0.0021708]
[1735485509842,0.18975394,94689.0,94686.0,0.0021708]
[1735485510686,0.18975394,94688.0,94686.0,0.0021708]
[1735485510904,0.18975394,94688.0,94686.0,0.0001708]
[1735485511186,0.18975394,94688.0,94686.0,0.0031708]
[1735485511602,8.54e-05,94691.0,94686.0,0.0001708]
[1735485511819,8.54e-05,94691.0,94686.0,0.0041708]
[1735485512744,8.54e-05,94691.0,94686.0,0.0001708]
[1735485512924,8.54e-05,94691.0,94686.0,0.0021708]
[1735485513831,0.28452827,94690.0,94686.0,0.0021708]
[1735485514862,0.28452827,94687.0,94686.0,0.0021708]
[1735485515060,0.28452827,94687.0,94686.0,0.0001708]
[1735485515603,0.28461367,94691.0,94686.0,0.0001708]
[1735485516221,0.001,94690.0,94686.0,0.0001708]
[1735485516432,0.28552827,94690.0,94686.0,0.0001708]
[1735485516630,0.28452827,94690.0,94686.0,0.0001708]
[1735485517724,0.28552827,94690.0,94686.0,0.0001708]
[1735485518318,0.28452827,94689.0,94686.0,0.0001708]
[1735485518860,0.28452827,94689.0,94687.0,0.1251]
[1735485519298,0.28452827,94688.0,94687.0,0.1251]
[1735485520476,8.54e-05,94691.0,94687.0,0.1251]
[1735485520889,8.54e-05,94691.0,94686.0,0.0001708]
[1735485521306,0.28461367,94691.0,94686.0,0.0001708]
[1735485521510,0.28461367,94691.0,94687.0,0.005]
[1735485521750,0.28461367,94691.0,94687.0,0.001]
[1735485522588,8.54e-05,94691.0,94687.0,0.004]
[1735485522781,8.54e-05,94691.0,94687.0,0.003]
[1735485523410,0.32017971,94691.0,94687.0,0.003]
[1735485525834,8.54e-05,94691.0,94687.0,0.003]
[1735485526423,8.54e-05,94691.0,94686.0,0.0001708]
[1735485526876,0.0010854,94691.0,94686.0,0.0001708]
[1735485527304,8.54e-05,94691.0,94686.0,0.0001708]
[1735485527739,0.0010854,94691.0,94686.0,0.0001708]
[1735485530731,0.0010854,94691.0,94687.0,0.0774]
[1735485532316,8.54e-05,94691.0,94687.0,0.0774]
[1735485532687,0.0010854,94691.0,94687.0,0.0774]
[1735485532896,0.0010854,94691.0,94687.0,0.08519122]
[1735485533119,0.0010854,94691.0,94687.0,0.0774]
[1735485545665,0.28587479,94688.0,94687.0,0.0774]
[1735485546506,0.28587479,94688.0,94687.0,0.31072797]
[1735485546723,0.28587479,94688.0,94687.0,0.39877547]
[1735485546923,0.28687479,94688.0,94687.0,0.43870424]
[1735485547551,0.28587479,94688.0,94687.0,0.43870424]
[1735485547725,0.2382022,94689.0,94688.0,0.21044165]
[1735485547879,0.2382022,94689.0,94688.0,0.40247547]
[1735485548295,0.2382022,94689.0,94688.0,0.44277424]
[1735485548750,0.14287479,94689.0,94688.0,0.44277424]
[1735485549587,0.14287479,94689.0,94688.0,0.45177424]
[1735485550201,8.54e-05,94691.0,94690.0,0.08154165]
[1735485550406,8.54e-05,94691.0,94690.0,0.26542797]
[1735485550610,8.54e-05,94691.0,94690.0,0.0799]
[1735485551009,0.01664702,94691.0,94690.0,0.0799]
[1735485551412,0.20714674,94691.0,94690.0,0.0799]
[1735485551787,0.20714674,94691.0,94690.0,0.0829]
[1735485552224,0.20714674,94691.0,94690.0,0.0799]
[1735485552399,0.20714674,94691.0,94688.0,0.058]
[1735485552595,0.20714674,94691.0,94690.0,0.002]
[1735485552992,0.01664702,94691.0,94690.0,0.01]
[1735485553191,0.01664702,94691.0,94690.0,0.002]
[1735485553844,8.54e-05,94691.0,94690.0,0.002]
[1735485554448,8.54e-05,94691.0,94690.0,0.0819]
[1735485554656,8.54e-05,94691.0,94690.0,0.0799]
[1735485555106,8.54e-05,94691.0,94690.0,0.0819]
[1735485555477,8.54e-05,94691.0,94690.0,0.0799]
[1735485555933,8.54e-05,94691.0,94690.0,0.0859]
[1735485557124,0.01664779,94691.0,94690.0,0.0859]
[1735485557968,0.01664779,94691.0,94690.0,0.33231118]
[1735485558179,0.01664779,94691.0,94690.0,0.42035868]
[1735485559556,0.28554155,94701.0,94700.0,0.29708915]
[1735485559557,0.28400745,94701.0,94700.0,0.29708915]
[1735485559768,0.28400745,94701.0,94700.0,0.40107547]
[1735485559975,0.32164066,94716.0,94700.0,0.44118302]
[1735485560181,0.32164066,94716.0,94703.0,0.10398632]
[1735485560406,0.32164066,94716.0,94715.0,0.0880475]
[1735485560609,0.32164066,94716.0,94715.0,0.19203382]
[1735485560996,0.32164066,94716.0,94715.0,0.27357547]
[1735485561215,0.32164066,94716.0,94715.0,0.19203382]
[1735485561376,0.01655803,94722.0,94715.0,0.19203382]
[1735485561377,0.14269839,94720.0,94715.0,0.19203382]
[1735485561579,0.14269839,94720.0,94715.0,0.0880475]
[1735485561983,0.14269839,94720.0,94709.0,0.08154165]
[1735485562149,0.14269839,94720.0,94715.0,0.0880475]
[1735485562349,0.14269839,94720.0,94716.0,0.10398632]
[1735485562548,0.01655803,94722.0,94716.0,0.10398632]
[1735485562961,0.00023742,94725.0,94716.0,0.10398632]
[1735485564044,0.00023742,94725.0,94716.0,0.10998632]
[1735485564245,0.00023742,94725.0,94716.0,0.10398632]
[1735485564666,0.00023742,94725.0,94716.0,0.10898632]
[1735485564892,0.00023742,94725.0,94716.0,0.21938552]
[1735485565102,0.00023742,94725.0,94721.0,0.08154165]
[1735485565459,0.00023742,94725.0,94723.0,0.0880475]
[1735485565676,0.00023742,94725.0,94724.0,0.10398632]
[1735485566332,0.01679402,94725.0,94724.0,0.10398632]
[1735485567257,0.01679402,94725.0,94724.0,0.10898632]
[1735485567414,0.00023742,94725.0,94724.0,0.10898632]
[1735485568480,0.00023742,94725.0,94724.0,0.10998632]
[1735485570083,0.00023742,94725.0,94724.0,0.14557387]
[1735485570469,0.00023742,94725.0,94724.0,0.10998632]
[1735485572027,0.01118535,94739.0,94724.0,0.10998632]
[1735485572323,0.01155629,94736.0,94724.0,0.10998632]
[1735485572763,0.01128168,94739.0,94724.0,0.10998632]
[1735485573178,9.633e-05,94739.0,94724.0,0.10998632]
[1735485573345,9.633e-05,94739.0,94724.0,0.10398632]
[1735485573560,9.633e-05,94739.0,94725.0,0.03558755]
[1735485573884,9.633e-05,94739.0,94725.0,0.13957387]
[1735485575729,0.00018163,94739.0,94725.0,0.13957387]
[1735485575937,0.01673763,94739.0,94725.0,0.13957387]
[1735485576559,0.01673763,94739.0,94725.0,0.10398632]
[1735485576974,0.00018163,94739.0,94725.0,0.10398632]
[1735485587261,0.01655617,94737.0,94725.0,0.10398632]
[1735485588696,0.0785,94736.0,94724.0,0.0001706]
[1735485588922,0.01845835,94726.0,94724.0,0.0001706]
[1735485589648,0.03501738,94726.0,94724.0,0.0001706]
[1735485590395,0.03501738,94726.0,94724.0,0.0041706]
[1735485590645,0.03501738,94726.0,94724.0,0.0001706]
[1735485590874,0.01655903,94726.0,94724.0,0.0031706]
[1735485593869,0.2372687,94730.0,94724.0,0.0031706]
[1735485594724,0.01845835,94733.0,94724.0,0.0001706]
[1735485594725,0.2372687,94728.0,94724.0,0.0001706]
[1735485595570,0.2372687,94727.0,94724.0,0.0001706]
[1735485597192,0.25382786,94727.0,94724.0,0.0001706]